Workbook

Sheet Mortgage Calculator
B7: Axis | C7: X | D7: Y
B8: Max | C8: =D16 -> 360 | D8: =C17+20000 -> $170,000.00
B9: Min | C9: 0 | D9: 0
B10: Tick | C10: 12 | D10: 20000
B12: Mortgage Payoff Calculator
G13: Provided by: | H13: LifeAndMyFinances.com
B15: Annual Interest Rate | C15: 4.00% | E15: ="By putting an extra $"&C27&" toward your "&C16&" year mortgage, you'll pay it off "&C37&" years early and save $"&C38&" in interest!!" -> By putting an extra $500 toward your 30 year mortgage, you'll pay it off 16.7 years early and save $63578 in interest!!
B16: Term of Loan (# of Years) | C16: 30 | D16: =C16*12 -> 360
B17: Beginning Loan Amount | C17: $150,000
B18: Monthly Payment | C18: =PMT((C15/12),(C16*12),-C17) -> $716.12
B20: When Did Your Mortgage Start?
B21: Month: | C21: June | D21: =CONCATENATE(C21," ",C22) -> June 2017
B22: Year: | C22: 2017
B23: When Will You Start Extra Payments?
B24: Month: | C24: August | D24: =CONCATENATE(C24," ",C25) -> August 2017
B25: Year: | C25: 2017
B27: Extra Amount Per Month | C27: $500.00
B32: ="Total Interest After"&" "&C16&" "&"Years" -> Total Interest After 30 Years | C32: =SUM(O58:O657) -> $107,804.26
B33: Your Interest Paid With Extra Payments | C33: =SUM(G58:G657) -> $44,225.98
B36: Mortgage Paid Off By | C36: =VLOOKUP(0, H57:I657,2,FALSE) -> October 2030
B37: Years Saved | C37: =ROUND(C16-C42,1) -> 16.7
B38: Interest Saved | C38: =ROUND(C32-C33,0) -> $63,578
D40: =VLOOKUP(0,H58:J657,3,FALSE) -> 550
B42: Years to Pay Off | C42: =(D40-J58)/12 -> 13.3
B57: Month | C57: Payment | D57: Additional Pmnt | E57: Total Payment | F57: Principle | G57: Interest | H57: New Payoff | L57: Month | M57: Payment | N57: Principle | O57: Interest | P57: Old Payoff
A58: =VLOOKUP(B58,Table!E:F,2,FALSE) -> 390 | B58: =D21 -> June 2017 | C58: =-$C$18+D58 -> (716.12) | D58: =IF(B58=$D$24,-$C$27,0) -> 0.00 | E58: =-(C58) -> $716.12 | F58: =-(G58+C58) -> $216.12 | G58: =C17*C15/12 -> $500.00 | H58: =C17-F58 -> $149,783.88 | I58: =B58 -> June 2017 | J58: =A58 -> 390 | L58: 1 | M58: =-C18 -> ($716.12) | N58: =-(O58+M58) -> $216.12 | O58: =C17*C15/12 -> $500.00 | P58: =C17-N58 -> $149,783.88
A59: =A58+1 -> 391 | B59: =VLOOKUP(A59,Table!D:F,2,FALSE) -> July 2017 | C59: (716.12) | D59: =IF(D58<0, D58,IF(B59=$D$24,-$C$27,0)) -> 0.00 | E59: =IF(H58=0,0,-(C59)) -> $716.12 | F59: =IF(H58=0,0,-(G59+C59)) -> $216.84 | G59: =H58*$C$15/12 -> $499.28 | H59: =IF(-C59>=H58,0,(H58-F59)) -> $149,567.03 | I59: =B59 -> July 2017 | J59: =A59 -> 391 | L59: 2 | M59: =M58 -> ($716.12) | N59: =-(O59+M59) -> $216.84 | O59: =P58*$C$15/12 -> $499.28 | P59: =IF(-M59>=P58,0,(P58-N59)) -> $149,567.03
A60: =A59+1 -> 392 | B60: =VLOOKUP(A60,Table!D:F,2,FALSE) -> August 2017 | C60: (1216.12) | D60: (500.00) | E60: =IF(H59=0,0,-(C60)) -> $1,216.12 | F60: =IF(H59=0,0,-(G60+C60)) -> $717.57 | G60: $498.56 | H60: =IF(-C60>=H59,0,(H59-F60)) -> $148,849.47 | I60: August 2017 | J60: 392 | L60: 3 | M60: =M59 -> ($716.12) | N60: =-(O60+M60) -> $217.57 | O60: $498.56 | P60: =IF(-M60>=P59,0,(P59-N60)) -> $149,349.47
A61: 393 | B61: =VLOOKUP(A61,Table!D:F,2,FALSE) -> September 2017 | C61: (1216.12) | D61: (500.00) | E61: $1,216.12 | F61: $719.96 | G61: $496.16 | H61: $148,129.51 | I61: September 2017 | J61: 393 | L61: 4 | M61: ($716.12) | N61: $218.29 | O61: $497.83 | P61: $149,131.18
A62: 394 | B62: =VLOOKUP(A62,Table!D:F,2,FALSE) -> October 2017 | C62: (1216.12) | D62: (500.00) | E62: $1,216.12 | F62: $722.36 | G62: $493.77 | H62: $147,407.15 | I62: October 2017 | J62: 394 | L62: 5 | M62: ($716.12) | N62: $219.02 | O62: $497.10 | P62: $148,912.16
A63: 395 | B63: =VLOOKUP(A63,Table!D:F,2,FALSE) -> November 2017 | C63: (1216.12) | D63: (500.00) | E63: $1,216.12 | F63: $724.77 | G63: $491.36 | H63: $146,682.39 | I63: November 2017 | J63: 395 | L63: 6 | M63: ($716.12) | N63: $219.75 | O63: $496.37 | P63: $148,692.41
A64: 396 | B64: =VLOOKUP(A64,Table!D:F,2,FALSE) -> December 2017 | C64: (1216.12) | D64: (500.00) | E64: $1,216.12 | F64: $727.18 | G64: $488.94 | H64: $145,955.20 | I64: December 2017 | J64: 396 | L64: 7 | M64: ($716.12) | N64: $220.48 | O64: $495.64 | P64: $148,471.93
A65: 397 | B65: =VLOOKUP(A65,Table!D:F,2,FALSE) -> January 2018 | C65: (1216.12) | D65: (500.00) | E65: $1,216.12 | F65: $729.61 | G65: $486.52 | H65: $145,225.60 | I65: January 2018 | J65: 397 | L65: 8 | M65: ($716.12) | N65: $221.22 | O65: $494.91 | P65: $148,250.71
A66: 398 | B66: =VLOOKUP(A66,Table!D:F,2,FALSE) -> February 2018 | C66: (1216.12) | D66: (500.00) | E66: $1,216.12 | F66: $732.04 | G66: $484.09 | H66: $144,493.56 | I66: February 2018 | J66: 398 | L66: 9 | M66: ($716.12) | N66: $221.95 | O66: $494.17 | P66: $148,028.76
A67: 399 | B67: =VLOOKUP(A67,Table!D:F,2,FALSE) -> March 2018 | C67: (1216.12) | D67: (500.00) | E67: $1,216.12 | F67: $734.48 | G67: $481.65 | H67: $143,759.08 | I67: March 2018 | J67: 399 | L67: 10 | M67: ($716.12) | N67: $222.69 | O67: $493.43 | P67: $147,806.06
A68: 400 | B68: =VLOOKUP(A68,Table!D:F,2,FALSE) -> April 2018 | C68: (1216.12) | D68: (500.00) | E68: $1,216.12 | F68: $736.93 | G68: $479.20 | H68: $143,022.16 | I68: April 2018 | J68: 400 | L68: 11 | M68: ($716.12) | N68: $223.44 | O68: $492.69 | P68: $147,582.63
A69: 401 | B69: =VLOOKUP(A69,Table!D:F,2,FALSE) -> May 2018 | C69: (1216.12) | D69: (500.00) | E69: $1,216.12 | F69: $739.38 | G69: $476.74 | H69: $142,282.77 | I69: May 2018 | J69: 401 | L69: 12 | M69: ($716.12) | N69: $224.18 | O69: $491.94 | P69: $147,358.45
A70: 402 | B70: =VLOOKUP(A70,Table!D:F,2,FALSE) -> June 2018 | C70: (1216.12) | D70: (500.00) | E70: $1,216.12 | F70: $741.85 | G70: $474.28 | H70: $141,540.93 | I70: June 2018 | J70: 402 | L70: 13 | M70: ($716.12) | N70: $224.93 | O70: $491.19 | P70: $147,133.52
A71: 403 | B71: =VLOOKUP(A71,Table!D:F,2,FALSE) -> July 2018 | C71: (1216.12) | D71: (500.00) | E71: $1,216.12 | F71: $744.32 | G71: $471.80 | H71: $140,796.61 | I71: July 2018 | J71: 403 | L71: 14 | M71: ($716.12) | N71: $225.68 | O71: $490.45 | P71: $146,907.84
A72: 404 | B72: =VLOOKUP(A72,Table!D:F,2,FALSE) -> August 2018 | C72: (1216.12) | D72: (500.00) | E72: $1,216.12 | F72: $746.80 | G72: $469.32 | H72: $140,049.81 | I72: August 2018 | J72: 404 | L72: 15 | M72: ($716.12) | N72: $226.43 | O72: $489.69 | P72: $146,681.41
A73: 405 | B73: =VLOOKUP(A73,Table!D:F,2,FALSE) -> September 2018 | C73: (1216.12) | D73: (500.00) | E73: $1,216.12 | F73: $749.29 | G73: $466.83 | H73: $139,300.52 | I73: September 2018 | J73: 405 | L73: 16 | M73: ($716.12) | N73: $227.18 | O73: $488.94 | P73: $146,454.22
A74: 406 | B74: =VLOOKUP(A74,Table!D:F,2,FALSE) -> October 2018 | C74: (1216.12) | D74: (500.00) | E74: $1,216.12 | F74: $751.79 | G74: $464.34 | H74: $138,548.73 | I74: October 2018 | J74: 406 | L74: 17 | M74: ($716.12) | N74: $227.94 | O74: $488.18 | P74: $146,226.28
A75: 407 | B75: =VLOOKUP(A75,Table!D:F,2,FALSE) -> November 2018 | C75: (1216.12) | D75: (500.00) | E75: $1,216.12 | F75: $754.29 | G75: $461.83 | H75: $137,794.43 | I75: November 2018 | J75: 407 | L75: 18 | M75: ($716.12) | N75: $228.70 | O75: $487.42 | P75: $145,997.58
A76: 408 | B76: =VLOOKUP(A76,Table!D:F,2,FALSE) -> December 2018 | C76: (1216.12) | D76: (500.00) | E76: $1,216.12 | F76: $756.81 | G76: $459.31 | H76: $137,037.63 | I76: December 2018 | J76: 408 | L76: 19 | M76: ($716.12) | N76: $229.46 | O76: $486.66 | P76: $145,768.12
A77: 409 | B77: =VLOOKUP(A77,Table!D:F,2,FALSE) -> January 2019 | C77: (1216.12) | D77: (500.00) | E77: $1,216.12 | F77: $759.33 | G77: $456.79 | H77: $136,278.30 | I77: January 2019 | J77: 409 | L77: 20 | M77: ($716.12) | N77: $230.23 | O77: $485.89 | P77: $145,537.89
A78: 410 | B78: =VLOOKUP(A78,Table!D:F,2,FALSE) -> February 2019 | C78: (1216.12) | D78: (500.00) | E78: $1,216.12 | F78: $761.86 | G78: $454.26 | H78: $135,516.43 | I78: February 2019 | J78: 410 | L78: 21 | M78: ($716.12) | N78: $231.00 | O78: $485.13 | P78: $145,306.89
A79: 411 | B79: =VLOOKUP(A79,Table!D:F,2,FALSE) -> March 2019 | C79: (1216.12) | D79: (500.00) | E79: $1,216.12 | F79: $764.40 | G79: $451.72 | H79: $134,752.03 | I79: March 2019 | J79: 411 | L79: 22 | M79: ($716.12) | N79: $231.77 | O79: $484.36 | P79: $145,075.12
A80: 412 | B80: =VLOOKUP(A80,Table!D:F,2,FALSE) -> April 2019 | C80: (1216.12) | D80: (500.00) | E80: $1,216.12 | F80: $766.95 | G80: $449.17 | H80: $133,985.08 | I80: April 2019 | J80: 412 | L80: 23 | M80: ($716.12) | N80: $232.54 | O80: $483.58 | P80: $144,842.58
A81: 413 | B81: =VLOOKUP(A81,Table!D:F,2,FALSE) -> May 2019 | C81: (1216.12) | D81: (500.00) | E81: $1,216.12 | F81: $769.51 | G81: $446.62 | H81: $133,215.58 | I81: May 2019 | J81: 413 | L81: 24 | M81: ($716.12) | N81: $233.31 | O81: $482.81 | P81: $144,609.27
A82: 414 | B82: =VLOOKUP(A82,Table!D:F,2,FALSE) -> June 2019 | C82: (1216.12) | D82: (500.00) | E82: $1,216.12 | F82: $772.07 | G82: $444.05 | H82: $132,443.51 | I82: June 2019 | J82: 414 | L82: 25 | M82: ($716.12) | N82: $234.09 | O82: $482.03 | P82: $144,375.18
A83: 415 | B83: =VLOOKUP(A83,Table!D:F,2,FALSE) -> July 2019 | C83: (1216.12) | D83: (500.00) | E83: $1,216.12 | F83: $774.64 | G83: $441.48 | H83: $131,668.86 | I83: July 2019 | J83: 415 | L83: 26 | M83: ($716.12) | N83: $234.87 | O83: $481.25 | P83: $144,140.31
A84: 416 | B84: =VLOOKUP(A84,Table!D:F,2,FALSE) -> August 2019 | C84: (1216.12) | D84: (500.00) | E84: $1,216.12 | F84: $777.23 | G84: $438.90 | H84: $130,891.63 | I84: August 2019 | J84: 416 | L84: 27 | M84: ($716.12) | N84: $235.66 | O84: $480.47 | P84: $143,904.65
A85: 417 | B85: =VLOOKUP(A85,Table!D:F,2,FALSE) -> September 2019 | C85: (1216.12) | D85: (500.00) | E85: $1,216.12 | F85: $779.82 | G85: $436.31 | H85: $130,111.82 | I85: September 2019 | J85: 417 | L85: 28 | M85: ($716.12) | N85: $236.44 | O85: $479.68 | P85: $143,668.21
A86: 418 | B86: =VLOOKUP(A86,Table!D:F,2,FALSE) -> October 2019 | C86: (1216.12) | D86: (500.00) | E86: $1,216.12 | F86: $782.42 | G86: $433.71 | H86: $129,329.40 | I86: October 2019 | J86: 418 | L86: 29 | M86: ($716.12) | N86: $237.23 | O86: $478.89 | P86: $143,430.98
A87: 419 | B87: =VLOOKUP(A87,Table!D:F,2,FALSE) -> November 2019 | C87: (1216.12) | D87: (500.00) | E87: $1,216.12 | F87: $785.02 | G87: $431.10 | H87: $128,544.38 | I87: November 2019 | J87: 419 | L87: 30 | M87: ($716.12) | N87: $238.02 | O87: $478.10 | P87: $143,192.96
A88: 420 | B88: =VLOOKUP(A88,Table!D:F,2,FALSE) -> December 2019 | C88: (1216.12) | D88: (500.00) | E88: $1,216.12 | F88: $787.64 | G88: $428.48 | H88: $127,756.73 | I88: December 2019 | J88: 420 | L88: 31 | M88: ($716.12) | N88: $238.81 | O88: $477.31 | P88: $142,954.15
A89: 421 | B89: =VLOOKUP(A89,Table!D:F,2,FALSE) -> January 2020 | C89: (1216.12) | D89: (500.00) | E89: $1,216.12 | F89: $790.27 | G89: $425.86 | H89: $126,966.47 | I89: January 2020 | J89: 421 | L89: 32 | M89: ($716.12) | N89: $239.61 | O89: $476.51 | P89: $142,714.54
A90: 422 | B90: =VLOOKUP(A90,Table!D:F,2,FALSE) -> February 2020 | C90: =-$C$18+D90 -> (1216.12) | D90: (500.00) | E90: $1,216.12 | F90: $792.90 | G90: $423.22 | H90: $126,173.57 | I90: February 2020 | J90: 422 | L90: 33 | M90: ($716.12) | N90: $240.41 | O90: $475.72 | P90: $142,474.13
A91: 423 | B91: =VLOOKUP(A91,Table!D:F,2,FALSE) -> March 2020 | C91: (1216.12) | D91: (500.00) | E91: $1,216.12 | F91: $795.54 | G91: $420.58 | H91: $125,378.02 | I91: March 2020 | J91: 423 | L91: 34 | M91: ($716.12) | N91: $241.21 | O91: $474.91 | P91: $142,232.92
A92: 424 | B92: =VLOOKUP(A92,Table!D:F,2,FALSE) -> April 2020 | C92: (1216.12) | D92: (500.00) | E92: $1,216.12 | F92: $798.20 | G92: $417.93 | H92: $124,579.82 | I92: April 2020 | J92: 424 | L92: 35 | M92: ($716.12) | N92: $242.01 | O92: $474.11 | P92: $141,990.91
A93: 425 | B93: =VLOOKUP(A93,Table!D:F,2,FALSE) -> May 2020 | C93: (1216.12) | D93: (500.00) | E93: $1,216.12 | F93: $800.86 | G93: $415.27 | H93: $123,778.97 | I93: May 2020 | J93: 425 | L93: 36 | M93: ($716.12) | N93: $242.82 | O93: $473.30 | P93: $141,748.09
A94: 426 | B94: =VLOOKUP(A94,Table!D:F,2,FALSE) -> June 2020 | C94: (1216.12) | D94: (500.00) | E94: $1,216.12 | F94: $803.53 | G94: $412.60 | H94: $122,975.44 | I94: June 2020 | J94: 426 | L94: 37 | M94: ($716.12) | N94: $243.63 | O94: $472.49 | P94: $141,504.46
A95: 427 | B95: =VLOOKUP(A95,Table!D:F,2,FALSE) -> July 2020 | C95: (1216.12) | D95: (500.00) | E95: $1,216.12 | F95: $806.20 | G95: $409.92 | H95: $122,169.24 | I95: July 2020 | J95: 427 | L95: 38 | M95: ($716.12) | N95: $244.44 | O95: $471.68 | P95: $141,260.02
A96: 428 | B96: =VLOOKUP(A96,Table!D:F,2,FALSE) -> August 2020 | C96: (1216.12) | D96: (500.00) | E96: $1,216.12 | F96: $808.89 | G96: $407.23 | H96: $121,360.34 | I96: August 2020 | J96: 428 | L96: 39 | M96: ($716.12) | N96: $245.26 | O96: $470.87 | P96: $141,014.76
A97: 429 | B97: =VLOOKUP(A97,Table!D:F,2,FALSE) -> September 2020 | C97: (1216.12) | D97: (500.00) | E97: $1,216.12 | F97: $811.59 | G97: $404.53 | H97: $120,548.76 | I97: September 2020 | J97: 429 | L97: 40 | M97: ($716.12) | N97: $246.07 | O97: $470.05 | P97: $140,768.69
A98: 430 | B98: =VLOOKUP(A98,Table!D:F,2,FALSE) -> October 2020 | C98: (1216.12) | D98: (500.00) | E98: $1,216.12 | F98: $814.29 | G98: $401.83 | H98: $119,734.46 | I98: October 2020 | J98: 430 | L98: 41 | M98: ($716.12) | N98: $246.89 | O98: $469.23 | P98: $140,521.79
A99: 431 | B99: =VLOOKUP(A99,Table!D:F,2,FALSE) -> November 2020 | C99: (1216.12) | D99: (500.00) | E99: $1,216.12 | F99: $817.01 | G99: $399.11 | H99: $118,917.45 | I99: November 2020 | J99: 431 | L99: 42 | M99: ($716.12) | N99: $247.72 | O99: $468.41 | P99: $140,274.08
A100: 432 | B100: =VLOOKUP(A100,Table!D:F,2,FALSE) -> December 2020 | C100: (1216.12) | D100: (500.00) | E100: $1,216.12 | F100: $819.73 | G100: $396.39 | H100: $118,097.72 | I100: December 2020 | J100: 432 | L100: 43 | M100: ($716.12) | N100: $248.54 | O100: $467.58 | P100: $140,025.53
A101: 433 | B101: =VLOOKUP(A101,Table!D:F,2,FALSE) -> January 2021 | C101: (1216.12) | D101: (500.00) | E101: $1,216.12 | F101: $822.46 | G101: $393.66 | H101: $117,275.26 | I101: January 2021 | J101: 433 | L101: 44 | M101: ($716.12) | N101: $249.37 | O101: $466.75 | P101: $139,776.16
A102: 434 | B102: =VLOOKUP(A102,Table!D:F,2,FALSE) -> February 2021 | C102: (1216.12) | D102: (500.00) | E102: $1,216.12 | F102: $825.21 | G102: $390.92 | H102: $116,450.05 | I102: February 2021 | J102: 434 | L102: 45 | M102: ($716.12) | N102: $250.20 | O102: $465.92 | P102: $139,525.96
A103: 435 | B103: =VLOOKUP(A103,Table!D:F,2,FALSE) -> March 2021 | C103: (1216.12) | D103: (500.00) | E103: $1,216.12 | F103: $827.96 | G103: $388.17 | H103: $115,622.10 | I103: March 2021 | J103: 435 | L103: 46 | M103: ($716.12) | N103: $251.04 | O103: $465.09 | P103: $139,274.92
A104: 436 | B104: =VLOOKUP(A104,Table!D:F,2,FALSE) -> April 2021 | C104: (1216.12) | D104: (500.00) | E104: $1,216.12 | F104: $830.72 | G104: $385.41 | H104: $114,791.38 | I104: April 2021 | J104: 436 | L104: 47 | M104: ($716.12) | N104: $251.87 | O104: $464.25 | P104: $139,023.05
A105: 437 | B105: =VLOOKUP(A105,Table!D:F,2,FALSE) -> May 2021 | C105: (1216.12) | D105: (500.00) | E105: $1,216.12 | F105: $833.49 | G105: $382.64 | H105: $113,957.90 | I105: May 2021 | J105: 437 | L105: 48 | M105: ($716.12) | N105: $252.71 | O105: $463.41 | P105: $138,770.34
A106: 438 | B106: =VLOOKUP(A106,Table!D:F,2,FALSE) -> June 2021 | C106: (1216.12) | D106: (500.00) | E106: $1,216.12 | F106: $836.26 | G106: $379.86 | H106: $113,121.63 | I106: June 2021 | J106: 438 | L106: 49 | M106: ($716.12) | N106: $253.56 | O106: $462.57 | P106: $138,516.78
A107: 439 | B107: =VLOOKUP(A107,Table!D:F,2,FALSE) -> July 2021 | C107: (1216.12) | D107: (500.00) | E107: $1,216.12 | F107: $839.05 | G107: $377.07 | H107: $112,282.58 | I107: July 2021 | J107: 439 | L107: 50 | M107: ($716.12) | N107: $254.40 | O107: $461.72 | P107: $138,262.38
A108: 440 | B108: =VLOOKUP(A108,Table!D:F,2,FALSE) -> August 2021 | C108: (1216.12) | D108: (500.00) | E108: $1,216.12 | F108: $841.85 | G108: $374.28 | H108: $111,440.73 | I108: August 2021 | J108: 440 | L108: 51 | M108: ($716.12) | N108: $255.25 | O108: $460.87 | P108: $138,007.13
A109: 441 | B109: =VLOOKUP(A109,Table!D:F,2,FALSE) -> September 2021 | C109: (1216.12) | D109: (500.00) | E109: $1,216.12 | F109: $844.65 | G109: $371.47 | H109: $110,596.08 | I109: September 2021 | J109: 441 | L109: 52 | M109: ($716.12) | N109: $256.10 | O109: $460.02 | P109: $137,751.04
A110: 442 | B110: =VLOOKUP(A110,Table!D:F,2,FALSE) -> October 2021 | C110: (1216.12) | D110: (500.00) | E110: $1,216.12 | F110: $847.47 | G110: $368.65 | H110: $109,748.61 | I110: October 2021 | J110: 442 | L110: 53 | M110: ($716.12) | N110: $256.95 | O110: $459.17 | P110: $137,494.08
A111: 443 | B111: =VLOOKUP(A111,Table!D:F,2,FALSE) -> November 2021 | C111: (1216.12) | D111: (500.00) | E111: $1,216.12 | F111: $850.29 | G111: $365.83 | H111: $108,898.32 | I111: November 2021 | J111: 443 | L111: 54 | M111: ($716.12) | N111: $257.81 | O111: $458.31 | P111: $137,236.27
A112: 444 | B112: =VLOOKUP(A112,Table!D:F,2,FALSE) -> December 2021 | C112: (1216.12) | D112: (500.00) | E112: $1,216.12 | F112: $853.13 | G112: $362.99 | H112: $108,045.19 | I112: December 2021 | J112: 444 | L112: 55 | M112: ($716.12) | N112: $258.67 | O112: $457.45 | P112: $136,977.60
A113: 445 | B113: =VLOOKUP(A113,Table!D:F,2,FALSE) -> January 2022 | C113: (1216.12) | D113: (500.00) | E113: $1,216.12 | F113: $855.97 | G113: $360.15 | H113: $107,189.22 | I113: January 2022 | J113: 445 | L113: 56 | M113: ($716.12) | N113: $259.53 | O113: $456.59 | P113: $136,718.07
A114: 446 | B114: =VLOOKUP(A114,Table!D:F,2,FALSE) -> February 2022 | C114: (1216.12) | D114: (500.00) | E114: $1,216.12 | F114: $858.83 | G114: $357.30 | H114: $106,330.39 | I114: February 2022 | J114: 446 | L114: 57 | M114: ($716.12) | N114: $260.40 | O114: $455.73 | P114: $136,457.68
A115: 447 | B115: =VLOOKUP(A115,Table!D:F,2,FALSE) -> March 2022 | C115: (1216.12) | D115: (500.00) | E115: $1,216.12 | F115: $861.69 | G115: $354.43 | H115: $105,468.70 | I115: March 2022 | J115: 447 | L115: 58 | M115: ($716.12) | N115: $261.26 | O115: $454.86 | P115: $136,196.41
A116: 448 | B116: =VLOOKUP(A116,Table!D:F,2,FALSE) -> April 2022 | C116: (1216.12) | D116: (500.00) | E116: $1,216.12 | F116: $864.56 | G116: $351.56 | H116: $104,604.14 | I116: April 2022 | J116: 448 | L116: 59 | M116: ($716.12) | N116: $262.13 | O116: $453.99 | P116: $135,934.28
A117: 449 | B117: =VLOOKUP(A117,Table!D:F,2,FALSE) -> May 2022 | C117: (1216.12) | D117: (500.00) | E117: $1,216.12 | F117: $867.44 | G117: $348.68 | H117: $103,736.70 | I117: May 2022 | J117: 449 | L117: 60 | M117: ($716.12) | N117: $263.01 | O117: $453.11 | P117: $135,671.27
A118: 450 | B118: =VLOOKUP(A118,Table!D:F,2,FALSE) -> June 2022 | C118: (1216.12) | D118: (500.00) | E118: $1,216.12 | F118: $870.33 | G118: $345.79 | H118: $102,866.37 | I118: June 2022 | J118: 450 | L118: 61 | M118: ($716.12) | N118: $263.89 | O118: $452.24 | P118: $135,407.38
A119: 451 | B119: =VLOOKUP(A119,Table!D:F,2,FALSE) -> July 2022 | C119: (1216.12) | D119: (500.00) | E119: $1,216.12 | F119: $873.24 | G119: $342.89 | H119: $101,993.13 | I119: July 2022 | J119: 451 | L119: 62 | M119: ($716.12) | N119: $264.76 | O119: $451.36 | P119: $135,142.62
A120: 452 | B120: =VLOOKUP(A120,Table!D:F,2,FALSE) -> August 2022 | C120: (1216.12) | D120: (500.00) | E120: $1,216.12 | F120: $876.15 | G120: $339.98 | H120: $101,116.98 | I120: August 2022 | J120: 452 | L120: 63 | M120: ($716.12) | N120: $265.65 | O120: $450.48 | P120: $134,876.97
A121: 453 | B121: =VLOOKUP(A121,Table!D:F,2,FALSE) -> September 2022 | C121: (1216.12) | D121: (500.00) | E121: $1,216.12 | F121: $879.07 | G121: $337.06 | H121: $100,237.92 | I121: September 2022 | J121: 453 | L121: 64 | M121: ($716.12) | N121: $266.53 | O121: $449.59 | P121: $134,610.44
A122: 454 | B122: =VLOOKUP(A122,Table!D:F,2,FALSE) -> October 2022 | C122: =-$C$18+D122 -> (1216.12) | D122: (500.00) | E122: $1,216.12 | F122: $882.00 | G122: $334.13 | H122: $99,355.92 | I122: October 2022 | J122: 454 | L122: 65 | M122: ($716.12) | N122: $267.42 | O122: $448.70 | P122: $134,343.02
A123: 455 | B123: =VLOOKUP(A123,Table!D:F,2,FALSE) -> November 2022 | C123: =-$C$18+D123 -> (1216.12) | D123: =IF(D122<0, D122,IF(B123=$D$24,-$C$27,0)) -> (500.00) | E123: $1,216.12 | F123: $884.94 | G123: =H122*$C$15/12 -> $331.19 | H123: $98,470.98 | I123: =B123 -> November 2022 | J123: =A123 -> 455 | L123: 66 | M123: ($716.12) | N123: $268.31 | O123: =P122*$C$15/12 -> $447.81 | P123: $134,074.70
A124: =A123+1 -> 456 | B124: =VLOOKUP(A124,Table!D:F,2,FALSE) -> December 2022 | C124: (1216.12) | D124: (500.00) | E124: =IF(H123=0,0,-(C124)) -> $1,216.12 | F124: =IF(H123=0,0,-(G124+C124)) -> $887.89 | G124: $328.24 | H124: =IF(-C124>=H123,0,(H123-F124)) -> $97,583.10 | I124: December 2022 | J124: 456 | L124: 67 | M124: =M123 -> ($716.12) | N124: =-(O124+M124) -> $269.21 | O124: $446.92 | P124: =IF(-M124>=P123,0,(P123-N124)) -> $133,805.50
A125: 457 | B125: =VLOOKUP(A125,Table!D:F,2,FALSE) -> January 2023 | C125: (1216.12) | D125: (500.00) | E125: $1,216.12 | F125: $890.85 | G125: $325.28 | H125: $96,692.25 | I125: January 2023 | J125: 457 | L125: 68 | M125: ($716.12) | N125: $270.10 | O125: $446.02 | P125: $133,535.39
A126: 458 | B126: =VLOOKUP(A126,Table!D:F,2,FALSE) -> February 2023 | C126: (1216.12) | D126: (500.00) | E126: $1,216.12 | F126: $893.82 | G126: $322.31 | H126: $95,798.44 | I126: February 2023 | J126: 458 | L126: 69 | M126: ($716.12) | N126: $271.00 | O126: $445.12 | P126: $133,264.39
A127: 459 | B127: =VLOOKUP(A127,Table!D:F,2,FALSE) -> March 2023 | C127: (1216.12) | D127: (500.00) | E127: $1,216.12 | F127: $896.79 | G127: $319.33 | H127: $94,901.64 | I127: March 2023 | J127: 459 | L127: 70 | M127: ($716.12) | N127: $271.91 | O127: $444.21 | P127: $132,992.48
A128: 460 | B128: =VLOOKUP(A128,Table!D:F,2,FALSE) -> April 2023 | C128: (1216.12) | D128: (500.00) | E128: $1,216.12 | F128: $899.78 | G128: $316.34 | H128: $94,001.86 | I128: April 2023 | J128: 460 | L128: 71 | M128: ($716.12) | N128: $272.81 | O128: $443.31 | P128: $132,719.66
A129: 461 | B129: =VLOOKUP(A129,Table!D:F,2,FALSE) -> May 2023 | C129: (1216.12) | D129: (500.00) | E129: $1,216.12 | F129: $902.78 | G129: $313.34 | H129: $93,099.07 | I129: May 2023 | J129: 461 | L129: 72 | M129: ($716.12) | N129: $273.72 | O129: $442.40 | P129: $132,445.94
A130: 462 | B130: =VLOOKUP(A130,Table!D:F,2,FALSE) -> June 2023 | C130: (1216.12) | D130: (500.00) | E130: $1,216.12 | F130: $905.79 | G130: $310.33 | H130: $92,193.28 | I130: June 2023 | J130: 462 | L130: 73 | M130: ($716.12) | N130: $274.64 | O130: $441.49 | P130: $132,171.30
A131: 463 | B131: =VLOOKUP(A131,Table!D:F,2,FALSE) -> July 2023 | C131: (1216.12) | D131: (500.00) | E131: $1,216.12 | F131: $908.81 | G131: $307.31 | H131: $91,284.47 | I131: July 2023 | J131: 463 | L131: 74 | M131: ($716.12) | N131: $275.55 | O131: $440.57 | P131: $131,895.75
A132: 464 | B132: =VLOOKUP(A132,Table!D:F,2,FALSE) -> August 2023 | C132: (1216.12) | D132: (500.00) | E132: $1,216.12 | F132: $911.84 | G132: $304.28 | H132: $90,372.63 | I132: August 2023 | J132: 464 | L132: 75 | M132: ($716.12) | N132: $276.47 | O132: $439.65 | P132: $131,619.28
A133: 465 | B133: =VLOOKUP(A133,Table!D:F,2,FALSE) -> September 2023 | C133: (1216.12) | D133: (500.00) | E133: $1,216.12 | F133: $914.88 | G133: $301.24 | H133: $89,457.75 | I133: September 2023 | J133: 465 | L133: 76 | M133: ($716.12) | N133: $277.39 | O133: $438.73 | P133: $131,341.89
A134: 466 | B134: =VLOOKUP(A134,Table!D:F,2,FALSE) -> October 2023 | C134: (1216.12) | D134: (500.00) | E134: $1,216.12 | F134: $917.93 | G134: $298.19 | H134: $88,539.82 | I134: October 2023 | J134: 466 | L134: 77 | M134: ($716.12) | N134: $278.32 | O134: $437.81 | P134: $131,063.57
A135: 467 | B135: =VLOOKUP(A135,Table!D:F,2,FALSE) -> November 2023 | C135: (1216.12) | D135: (500.00) | E135: $1,216.12 | F135: $920.99 | G135: $295.13 | H135: $87,618.83 | I135: November 2023 | J135: 467 | L135: 78 | M135: ($716.12) | N135: $279.24 | O135: $436.88 | P135: $130,784.33
A136: 468 | B136: =VLOOKUP(A136,Table!D:F,2,FALSE) -> December 2023 | C136: (1216.12) | D136: (500.00) | E136: $1,216.12 | F136: $924.06 | G136: $292.06 | H136: $86,694.77 | I136: December 2023 | J136: 468 | L136: 79 | M136: ($716.12) | N136: $280.18 | O136: $435.95 | P136: $130,504.15
A137: 469 | B137: =VLOOKUP(A137,Table!D:F,2,FALSE) -> January 2024 | C137: (1216.12) | D137: (500.00) | E137: $1,216.12 | F137: $927.14 | G137: $288.98 | H137: $85,767.63 | I137: January 2024 | J137: 469 | L137: 80 | M137: ($716.12) | N137: $281.11 | O137: $435.01 | P137: $130,223.04
A138: 470 | B138: =VLOOKUP(A138,Table!D:F,2,FALSE) -> February 2024 | C138: (1216.12) | D138: (500.00) | E138: $1,216.12 | F138: $930.23 | G138: $285.89 | H138: $84,837.40 | I138: February 2024 | J138: 470 | L138: 81 | M138: ($716.12) | N138: $282.05 | O138: $434.08 | P138: $129,941.00
A139: 471 | B139: =VLOOKUP(A139,Table!D:F,2,FALSE) -> March 2024 | C139: (1216.12) | D139: (500.00) | E139: $1,216.12 | F139: $933.33 | G139: $282.79 | H139: $83,904.06 | I139: March 2024 | J139: 471 | L139: 82 | M139: ($716.12) | N139: $282.99 | O139: $433.14 | P139: $129,658.01
A140: 472 | B140: =VLOOKUP(A140,Table!D:F,2,FALSE) -> April 2024 | C140: (1216.12) | D140: (500.00) | E140: $1,216.12 | F140: $936.44 | G140: $279.68 | H140: $82,967.62 | I140: April 2024 | J140: 472 | L140: 83 | M140: ($716.12) | N140: $283.93 | O140: $432.19 | P140: $129,374.08
A141: 473 | B141: =VLOOKUP(A141,Table!D:F,2,FALSE) -> May 2024 | C141: (1216.12) | D141: (500.00) | E141: $1,216.12 | F141: $939.56 | G141: $276.56 | H141: $82,028.06 | I141: May 2024 | J141: 473 | L141: 84 | M141: ($716.12) | N141: $284.88 | O141: $431.25 | P141: $129,089.21
A142: 474 | B142: =VLOOKUP(A142,Table!D:F,2,FALSE) -> June 2024 | C142: (1216.12) | D142: (500.00) | E142: $1,216.12 | F142: $942.70 | G142: $273.43 | H142: $81,085.36 | I142: June 2024 | J142: 474 | L142: 85 | M142: ($716.12) | N142: $285.83 | O142: $430.30 | P142: $128,803.38
A143: 475 | B143: =VLOOKUP(A143,Table!D:F,2,FALSE) -> July 2024 | C143: (1216.12) | D143: (500.00) | E143: $1,216.12 | F143: $945.84 | G143: $270.28 | H143: $80,139.52 | I143: July 2024 | J143: 475 | L143: 86 | M143: ($716.12) | N143: $286.78 | O143: $429.34 | P143: $128,516.60
A144: 476 | B144: =VLOOKUP(A144,Table!D:F,2,FALSE) -> August 2024 | C144: (1216.12) | D144: (500.00) | E144: $1,216.12 | F144: $948.99 | G144: $267.13 | H144: $79,190.53 | I144: August 2024 | J144: 476 | L144: 87 | M144: ($716.12) | N144: $287.73 | O144: $428.39 | P144: $128,228.87
A145: 477 | B145: =VLOOKUP(A145,Table!D:F,2,FALSE) -> September 2024 | C145: (1216.12) | D145: (500.00) | E145: $1,216.12 | F145: $952.15 | G145: $263.97 | H145: $78,238.38 | I145: September 2024 | J145: 477 | L145: 88 | M145: ($716.12) | N145: $288.69 | O145: $427.43 | P145: $127,940.17
A146: 478 | B146: =VLOOKUP(A146,Table!D:F,2,FALSE) -> October 2024 | C146: (1216.12) | D146: (500.00) | E146: $1,216.12 | F146: $955.33 | G146: $260.79 | H146: $77,283.05 | I146: October 2024 | J146: 478 | L146: 89 | M146: ($716.12) | N146: $289.66 | O146: $426.47 | P146: $127,650.52
A147: 479 | B147: =VLOOKUP(A147,Table!D:F,2,FALSE) -> November 2024 | C147: (1216.12) | D147: (500.00) | E147: $1,216.12 | F147: $958.51 | G147: $257.61 | H147: $76,324.54 | I147: November 2024 | J147: 479 | L147: 90 | M147: ($716.12) | N147: $290.62 | O147: $425.50 | P147: $127,359.90
A148: 480 | B148: =VLOOKUP(A148,Table!D:F,2,FALSE) -> December 2024 | C148: (1216.12) | D148: (500.00) | E148: $1,216.12 | F148: $961.71 | G148: $254.42 | H148: $75,362.83 | I148: December 2024 | J148: 480 | L148: 91 | M148: ($716.12) | N148: $291.59 | O148: $424.53 | P148: $127,068.31
A149: 481 | B149: =VLOOKUP(A149,Table!D:F,2,FALSE) -> January 2025 | C149: (1216.12) | D149: (500.00) | E149: $1,216.12 | F149: $964.91 | G149: $251.21 | H149: $74,397.91 | I149: January 2025 | J149: 481 | L149: 92 | M149: ($716.12) | N149: $292.56 | O149: $423.56 | P149: $126,775.75
A150: 482 | B150: =VLOOKUP(A150,Table!D:F,2,FALSE) -> February 2025 | C150: (1216.12) | D150: (500.00) | E150: $1,216.12 | F150: $968.13 | G150: $247.99 | H150: $73,429.78 | I150: February 2025 | J150: 482 | L150: 93 | M150: ($716.12) | N150: $293.54 | O150: $422.59 | P150: $126,482.21
A151: 483 | B151: =VLOOKUP(A151,Table!D:F,2,FALSE) -> March 2025 | C151: (1216.12) | D151: (500.00) | E151: $1,216.12 | F151: $971.36 | G151: $244.77 | H151: $72,458.43 | I151: March 2025 | J151: 483 | L151: 94 | M151: ($716.12) | N151: $294.52 | O151: $421.61 | P151: $126,187.69
A152: 484 | B152: =VLOOKUP(A152,Table!D:F,2,FALSE) -> April 2025 | C152: (1216.12) | D152: (500.00) | E152: $1,216.12 | F152: $974.59 | G152: $241.53 | H152: $71,483.83 | I152: April 2025 | J152: 484 | L152: 95 | M152: ($716.12) | N152: $295.50 | O152: $420.63 | P152: $125,892.20
A153: 485 | B153: =VLOOKUP(A153,Table!D:F,2,FALSE) -> May 2025 | C153: (1216.12) | D153: (500.00) | E153: $1,216.12 | F153: $977.84 | G153: $238.28 | H153: $70,505.99 | I153: May 2025 | J153: 485 | L153: 96 | M153: ($716.12) | N153: $296.48 | O153: $419.64 | P153: $125,595.71
A154: 486 | B154: =VLOOKUP(A154,Table!D:F,2,FALSE) -> June 2025 | C154: (1216.12) | D154: (500.00) | E154: $1,216.12 | F154: $981.10 | G154: $235.02 | H154: $69,524.89 | I154: June 2025 | J154: 486 | L154: 97 | M154: ($716.12) | N154: $297.47 | O154: $418.65 | P154: $125,298.24
A155: 487 | B155: =VLOOKUP(A155,Table!D:F,2,FALSE) -> July 2025 | C155: (1216.12) | D155: (500.00) | E155: $1,216.12 | F155: $984.37 | G155: $231.75 | H155: $68,540.51 | I155: July 2025 | J155: 487 | L155: 98 | M155: ($716.12) | N155: $298.46 | O155: $417.66 | P155: $124,999.78
A156: 488 | B156: =VLOOKUP(A156,Table!D:F,2,FALSE) -> August 2025 | C156: (1216.12) | D156: (500.00) | E156: $1,216.12 | F156: $987.65 | G156: $228.47 | H156: $67,552.86 | I156: August 2025 | J156: 488 | L156: 99 | M156: ($716.12) | N156: $299.46 | O156: $416.67 | P156: $124,700.32
A157: 489 | B157: =VLOOKUP(A157,Table!D:F,2,FALSE) -> September 2025 | C157: (1216.12) | D157: (500.00) | E157: $1,216.12 | F157: $990.95 | G157: $225.18 | H157: $66,561.91 | I157: September 2025 | J157: 489 | L157: 100 | M157: ($716.12) | N157: $300.46 | O157: $415.67 | P157: $124,399.87
A158: 490 | B158: =VLOOKUP(A158,Table!D:F,2,FALSE) -> October 2025 | C158: (1216.12) | D158: (500.00) | E158: $1,216.12 | F158: $994.25 | G158: $221.87 | H158: $65,567.66 | I158: October 2025 | J158: 490 | L158: 101 | M158: ($716.12) | N158: $301.46 | O158: $414.67 | P158: $124,098.41
A159: 491 | B159: =VLOOKUP(A159,Table!D:F,2,FALSE) -> November 2025 | C159: (1216.12) | D159: (500.00) | E159: $1,216.12 | F159: $997.56 | G159: $218.56 | H159: $64,570.10 | I159: November 2025 | J159: 491 | L159: 102 | M159: ($716.12) | N159: $302.46 | O159: $413.66 | P159: $123,795.95
A160: 492 | B160: =VLOOKUP(A160,Table!D:F,2,FALSE) -> December 2025 | C160: (1216.12) | D160: (500.00) | E160: $1,216.12 | F160: $1,000.89 | G160: $215.23 | H160: $63,569.21 | I160: December 2025 | J160: 492 | L160: 103 | M160: ($716.12) | N160: $303.47 | O160: $412.65 | P160: $123,492.48
A161: 493 | B161: =VLOOKUP(A161,Table!D:F,2,FALSE) -> January 2026 | C161: (1216.12) | D161: (500.00) | E161: $1,216.12 | F161: $1,004.23 | G161: $211.90 | H161: $62,564.98 | I161: January 2026 | J161: 493 | L161: 104 | M161: ($716.12) | N161: $304.48 | O161: $411.64 | P161: $123,188.00
A162: 494 | B162: =VLOOKUP(A162,Table!D:F,2,FALSE) -> February 2026 | C162: (1216.12) | D162: (500.00) | E162: $1,216.12 | F162: $1,007.57 | G162: $208.55 | H162: $61,557.41 | I162: February 2026 | J162: 494 | L162: 105 | M162: ($716.12) | N162: $305.50 | O162: $410.63 | P162: $122,882.50
A163: 495 | B163: =VLOOKUP(A163,Table!D:F,2,FALSE) -> March 2026 | C163: (1216.12) | D163: (500.00) | E163: $1,216.12 | F163: $1,010.93 | G163: $205.19 | H163: $60,546.48 | I163: March 2026 | J163: 495 | L163: 106 | M163: ($716.12) | N163: $306.51 | O163: $409.61 | P163: $122,575.99
A164: 496 | B164: =VLOOKUP(A164,Table!D:F,2,FALSE) -> April 2026 | C164: (1216.12) | D164: (500.00) | E164: $1,216.12 | F164: $1,014.30 | G164: $201.82 | H164: $59,532.18 | I164: April 2026 | J164: 496 | L164: 107 | M164: ($716.12) | N164: $307.54 | O164: $408.59 | P164: $122,268.45
A165: 497 | B165: =VLOOKUP(A165,Table!D:F,2,FALSE) -> May 2026 | C165: (1216.12) | D165: (500.00) | E165: $1,216.12 | F165: $1,017.68 | G165: $198.44 | H165: $58,514.49 | I165: May 2026 | J165: 497 | L165: 108 | M165: ($716.12) | N165: $308.56 | O165: $407.56 | P165: $121,959.89
A166: 498 | B166: =VLOOKUP(A166,Table!D:F,2,FALSE) -> June 2026 | C166: (1216.12) | D166: (500.00) | E166: $1,216.12 | F166: $1,021.07 | G166: $195.05 | H166: $57,493.42 | I166: June 2026 | J166: 498 | L166: 109 | M166: ($716.12) | N166: $309.59 | O166: $406.53 | P166: $121,650.30
A167: 499 | B167: =VLOOKUP(A167,Table!D:F,2,FALSE) -> July 2026 | C167: (1216.12) | D167: (500.00) | E167: $1,216.12 | F167: $1,024.48 | G167: $191.64 | H167: $56,468.94 | I167: July 2026 | J167: 499 | L167: 110 | M167: ($716.12) | N167: $310.62 | O167: $405.50 | P167: $121,339.68
A168: 500 | B168: =VLOOKUP(A168,Table!D:F,2,FALSE) -> August 2026 | C168: (1216.12) | D168: (500.00) | E168: $1,216.12 | F168: $1,027.89 | G168: $188.23 | H168: $55,441.05 | I168: August 2026 | J168: 500 | L168: 111 | M168: ($716.12) | N168: $311.66 | O168: $404.47 | P168: $121,028.02
A169: 501 | B169: =VLOOKUP(A169,Table!D:F,2,FALSE) -> September 2026 | C169: (1216.12) | D169: (500.00) | E169: $1,216.12 | F169: $1,031.32 | G169: $184.80 | H169: $54,409.73 | I169: September 2026 | J169: 501 | L169: 112 | M169: ($716.12) | N169: $312.70 | O169: $403.43 | P169: $120,715.33
A170: 502 | B170: =VLOOKUP(A170,Table!D:F,2,FALSE) -> October 2026 | C170: (1216.12) | D170: (500.00) | E170: $1,216.12 | F170: $1,034.76 | G170: $181.37 | H170: $53,374.97 | I170: October 2026 | J170: 502 | L170: 113 | M170: ($716.12) | N170: $313.74 | O170: $402.38 | P170: $120,401.59
A171: 503 | B171: =VLOOKUP(A171,Table!D:F,2,FALSE) -> November 2026 | C171: (1216.12) | D171: (500.00) | E171: $1,216.12 | F171: $1,038.21 | G171: $177.92 | H171: $52,336.77 | I171: November 2026 | J171: 503 | L171: 114 | M171: ($716.12) | N171: $314.78 | O171: $401.34 | P171: $120,086.80
A172: 504 | B172: =VLOOKUP(A172,Table!D:F,2,FALSE) -> December 2026 | C172: (1216.12) | D172: (500.00) | E172: $1,216.12 | F172: $1,041.67 | G172: $174.46 | H172: $51,295.10 | I172: December 2026 | J172: 504 | L172: 115 | M172: ($716.12) | N172: $315.83 | O172: $400.29 | P172: $119,770.97
A173: 505 | B173: =VLOOKUP(A173,Table!D:F,2,FALSE) -> January 2027 | C173: (1216.12) | D173: (500.00) | E173: $1,216.12 | F173: $1,045.14 | G173: $170.98 | H173: $50,249.96 | I173: January 2027 | J173: 505 | L173: 116 | M173: ($716.12) | N173: $316.89 | O173: $399.24 | P173: $119,454.08
A174: 506 | B174: =VLOOKUP(A174,Table!D:F,2,FALSE) -> February 2027 | C174: (1216.12) | D174: (500.00) | E174: $1,216.12 | F174: $1,048.62 | G174: $167.50 | H174: $49,201.34 | I174: February 2027 | J174: 506 | L174: 117 | M174: ($716.12) | N174: $317.94 | O174: $398.18 | P174: $119,136.14
A175: 507 | B175: =VLOOKUP(A175,Table!D:F,2,FALSE) -> March 2027 | C175: (1216.12) | D175: (500.00) | E175: $1,216.12 | F175: $1,052.12 | G175: $164.00 | H175: $48,149.22 | I175: March 2027 | J175: 507 | L175: 118 | M175: ($716.12) | N175: $319.00 | O175: $397.12 | P175: $118,817.14
A176: 508 | B176: =VLOOKUP(A176,Table!D:F,2,FALSE) -> April 2027 | C176: (1216.12) | D176: (500.00) | E176: $1,216.12 | F176: $1,055.63 | G176: $160.50 | H176: $47,093.59 | I176: April 2027 | J176: 508 | L176: 119 | M176: ($716.12) | N176: $320.07 | O176: $396.06 | P176: $118,497.07
A177: 509 | B177: =VLOOKUP(A177,Table!D:F,2,FALSE) -> May 2027 | C177: (1216.12) | D177: (500.00) | E177: $1,216.12 | F177: $1,059.14 | G177: $156.98 | H177: $46,034.45 | I177: May 2027 | J177: 509 | L177: 120 | M177: ($716.12) | N177: $321.13 | O177: $394.99 | P177: $118,175.94
A178: 510 | B178: =VLOOKUP(A178,Table!D:F,2,FALSE) -> June 2027 | C178: (1216.12) | D178: (500.00) | E178: $1,216.12 | F178: $1,062.67 | G178: $153.45 | H178: $44,971.77 | I178: June 2027 | J178: 510 | L178: 121 | M178: ($716.12) | N178: $322.20 | O178: $393.92 | P178: $117,853.74
A179: 511 | B179: =VLOOKUP(A179,Table!D:F,2,FALSE) -> July 2027 | C179: (1216.12) | D179: (500.00) | E179: $1,216.12 | F179: $1,066.22 | G179: $149.91 | H179: $43,905.56 | I179: July 2027 | J179: 511 | L179: 122 | M179: ($716.12) | N179: $323.28 | O179: $392.85 | P179: $117,530.46
A180: 512 | B180: =VLOOKUP(A180,Table!D:F,2,FALSE) -> August 2027 | C180: (1216.12) | D180: (500.00) | E180: $1,216.12 | F180: $1,069.77 | G180: $146.35 | H180: $42,835.79 | I180: August 2027 | J180: 512 | L180: 123 | M180: ($716.12) | N180: $324.35 | O180: $391.77 | P180: $117,206.10
A181: 513 | B181: =VLOOKUP(A181,Table!D:F,2,FALSE) -> September 2027 | C181: (1216.12) | D181: (500.00) | E181: $1,216.12 | F181: $1,073.34 | G181: $142.79 | H181: $41,762.45 | I181: September 2027 | J181: 513 | L181: 124 | M181: ($716.12) | N181: $325.44 | O181: $390.69 | P181: $116,880.67
A182: 514 | B182: =VLOOKUP(A182,Table!D:F,2,FALSE) -> October 2027 | C182: (1216.12) | D182: (500.00) | E182: $1,216.12 | F182: $1,076.91 | G182: $139.21 | H182: $40,685.53 | I182: October 2027 | J182: 514 | L182: 125 | M182: ($716.12) | N182: $326.52 | O182: $389.60 | P182: $116,554.15
A183: 515 | B183: =VLOOKUP(A183,Table!D:F,2,FALSE) -> November 2027 | C183: (1216.12) | D183: (500.00) | E183: $1,216.12 | F183: $1,080.50 | G183: $135.62 | H183: $39,605.03 | I183: November 2027 | J183: 515 | L183: 126 | M183: ($716.12) | N183: $327.61 | O183: $388.51 | P183: $116,226.54
A184: 516 | B184: =VLOOKUP(A184,Table!D:F,2,FALSE) -> December 2027 | C184: (1216.12) | D184: (500.00) | E184: $1,216.12 | F184: $1,084.11 | G184: $132.02 | H184: $38,520.92 | I184: December 2027 | J184: 516 | L184: 127 | M184: ($716.12) | N184: $328.70 | O184: $387.42 | P184: $115,897.84
A185: 517 | B185: =VLOOKUP(A185,Table!D:F,2,FALSE) -> January 2028 | C185: (1216.12) | D185: (500.00) | E185: $1,216.12 | F185: $1,087.72 | G185: $128.40 | H185: $37,433.20 | I185: January 2028 | J185: 517 | L185: 128 | M185: ($716.12) | N185: $329.80 | O185: $386.33 | P185: $115,568.04
A186: 518 | B186: =VLOOKUP(A186,Table!D:F,2,FALSE) -> February 2028 | C186: (1216.12) | D186: (500.00) | E186: $1,216.12 | F186: $1,091.35 | G186: $124.78 | H186: $36,341.86 | I186: February 2028 | J186: 518 | L186: 129 | M186: ($716.12) | N186: $330.90 | O186: $385.23 | P186: $115,237.14
A187: 519 | B187: =VLOOKUP(A187,Table!D:F,2,FALSE) -> March 2028 | C187: =-$C$18+D187 -> (1216.12) | D187: =IF(D186<0, D186,IF(B187=$D$24,-$C$27,0)) -> (500.00) | E187: $1,216.12 | F187: $1,094.98 | G187: =H186*$C$15/12 -> $121.14 | H187: $35,246.87 | I187: =B187 -> March 2028 | J187: =A187 -> 519 | L187: 130 | M187: ($716.12) | N187: $332.00 | O187: =P186*$C$15/12 -> $384.12 | P187: $114,905.14
A188: =A187+1 -> 520 | B188: =VLOOKUP(A188,Table!D:F,2,FALSE) -> April 2028 | C188: (1216.12) | D188: (500.00) | E188: =IF(H187=0,0,-(C188)) -> $1,216.12 | F188: =IF(H187=0,0,-(G188+C188)) -> $1,098.63 | G188: $117.49 | H188: =IF(-C188>=H187,0,(H187-F188)) -> $34,148.24 | I188: April 2028 | J188: 520 | L188: 131 | M188: =M187 -> ($716.12) | N188: =-(O188+M188) -> $333.11 | O188: $383.02 | P188: =IF(-M188>=P187,0,(P187-N188)) -> $114,572.04
A189: 521 | B189: =VLOOKUP(A189,Table!D:F,2,FALSE) -> May 2028 | C189: (1216.12) | D189: (500.00) | E189: $1,216.12 | F189: $1,102.30 | G189: $113.83 | H189: $33,045.94 | I189: May 2028 | J189: 521 | L189: 132 | M189: ($716.12) | N189: $334.22 | O189: $381.91 | P189: $114,237.82
A190: 522 | B190: =VLOOKUP(A190,Table!D:F,2,FALSE) -> June 2028 | C190: (1216.12) | D190: (500.00) | E190: $1,216.12 | F190: $1,105.97 | G190: $110.15 | H190: $31,939.98 | I190: June 2028 | J190: 522 | L190: 133 | M190: ($716.12) | N190: $335.33 | O190: $380.79 | P190: $113,902.49
A191: 523 | B191: =VLOOKUP(A191,Table!D:F,2,FALSE) -> July 2028 | C191: (1216.12) | D191: (500.00) | E191: $1,216.12 | F191: $1,109.66 | G191: $106.47 | H191: $30,830.32 | I191: July 2028 | J191: 523 | L191: 134 | M191: ($716.12) | N191: $336.45 | O191: $379.67 | P191: $113,566.04
A192: 524 | B192: =VLOOKUP(A192,Table!D:F,2,FALSE) -> August 2028 | C192: (1216.12) | D192: (500.00) | E192: $1,216.12 | F192: $1,113.36 | G192: $102.77 | H192: $29,716.96 | I192: August 2028 | J192: 524 | L192: 135 | M192: ($716.12) | N192: $337.57 | O192: $378.55 | P192: $113,228.48
A193: 525 | B193: =VLOOKUP(A193,Table!D:F,2,FALSE) -> September 2028 | C193: (1216.12) | D193: (500.00) | E193: $1,216.12 | F193: $1,117.07 | G193: $99.06 | H193: $28,599.90 | I193: September 2028 | J193: 525 | L193: 136 | M193: ($716.12) | N193: $338.69 | O193: $377.43 | P193: $112,889.78
A194: 526 | B194: =VLOOKUP(A194,Table!D:F,2,FALSE) -> October 2028 | C194: (1216.12) | D194: (500.00) | E194: $1,216.12 | F194: $1,120.79 | G194: $95.33 | H194: $27,479.11 | I194: October 2028 | J194: 526 | L194: 137 | M194: ($716.12) | N194: $339.82 | O194: $376.30 | P194: $112,549.96
A195: 527 | B195: =VLOOKUP(A195,Table!D:F,2,FALSE) -> November 2028 | C195: (1216.12) | D195: (500.00) | E195: $1,216.12 | F195: $1,124.53 | G195: $91.60 | H195: $26,354.58 | I195: November 2028 | J195: 527 | L195: 138 | M195: ($716.12) | N195: $340.96 | O195: $375.17 | P195: $112,209.00
A196: 528 | B196: =VLOOKUP(A196,Table!D:F,2,FALSE) -> December 2028 | C196: (1216.12) | D196: (500.00) | E196: $1,216.12 | F196: $1,128.27 | G196: $87.85 | H196: $25,226.31 | I196: December 2028 | J196: 528 | L196: 139 | M196: ($716.12) | N196: $342.09 | O196: $374.03 | P196: $111,866.91
A197: 529 | B197: =VLOOKUP(A197,Table!D:F,2,FALSE) -> January 2029 | C197: (1216.12) | D197: (500.00) | E197: $1,216.12 | F197: $1,132.04 | G197: $84.09 | H197: $24,094.27 | I197: January 2029 | J197: 529 | L197: 140 | M197: ($716.12) | N197: $343.23 | O197: $372.89 | P197: $111,523.67
A198: 530 | B198: =VLOOKUP(A198,Table!D:F,2,FALSE) -> February 2029 | C198: (1216.12) | D198: (500.00) | E198: $1,216.12 | F198: $1,135.81 | G198: $80.31 | H198: $22,958.46 | I198: February 2029 | J198: 530 | L198: 141 | M198: ($716.12) | N198: $344.38 | O198: $371.75 | P198: $111,179.30
A199: 531 | B199: =VLOOKUP(A199,Table!D:F,2,FALSE) -> March 2029 | C199: (1216.12) | D199: (500.00) | E199: $1,216.12 | F199: $1,139.59 | G199: $76.53 | H199: $21,818.87 | I199: March 2029 | J199: 531 | L199: 142 | M199: ($716.12) | N199: $345.53 | O199: $370.60 | P199: $110,833.77
A200: 532 | B200: =VLOOKUP(A200,Table!D:F,2,FALSE) -> April 2029 | C200: (1216.12) | D200: (500.00) | E200: $1,216.12 | F200: $1,143.39 | G200: $72.73 | H200: $20,675.47 | I200: April 2029 | J200: 532 | L200: 143 | M200: ($716.12) | N200: $346.68 | O200: $369.45 | P200: $110,487.09
A201: 533 | B201: =VLOOKUP(A201,Table!D:F,2,FALSE) -> May 2029 | C201: (1216.12) | D201: (500.00) | E201: $1,216.12 | F201: $1,147.20 | G201: $68.92 | H201: $19,528.27 | I201: May 2029 | J201: 533 | L201: 144 | M201: ($716.12) | N201: $347.83 | O201: $368.29 | P201: $110,139.26
A202: 534 | B202: =VLOOKUP(A202,Table!D:F,2,FALSE) -> June 2029 | C202: (1216.12) | D202: (500.00) | E202: $1,216.12 | F202: $1,151.03 | G202: $65.09 | H202: $18,377.24 | I202: June 2029 | J202: 534 | L202: 145 | M202: ($716.12) | N202: $348.99 | O202: $367.13 | P202: $109,790.27
A203: 535 | B203: =VLOOKUP(A203,Table!D:F,2,FALSE) -> July 2029 | C203: (1216.12) | D203: (500.00) | E203: $1,216.12 | F203: $1,154.87 | G203: $61.26 | H203: $17,222.38 | I203: July 2029 | J203: 535 | L203: 146 | M203: ($716.12) | N203: $350.16 | O203: $365.97 | P203: $109,440.11
A204: 536 | B204: =VLOOKUP(A204,Table!D:F,2,FALSE) -> August 2029 | C204: (1216.12) | D204: (500.00) | E204: $1,216.12 | F204: $1,158.72 | G204: $57.41 | H204: $16,063.66 | I204: August 2029 | J204: 536 | L204: 147 | M204: ($716.12) | N204: $351.32 | O204: $364.80 | P204: $109,088.79
A205: 537 | B205: =VLOOKUP(A205,Table!D:F,2,FALSE) -> September 2029 | C205: (1216.12) | D205: (500.00) | E205: $1,216.12 | F205: $1,162.58 | G205: $53.55 | H205: $14,901.08 | I205: September 2029 | J205: 537 | L205: 148 | M205: ($716.12) | N205: $352.49 | O205: $363.63 | P205: $108,736.30
A206: 538 | B206: =VLOOKUP(A206,Table!D:F,2,FALSE) -> October 2029 | C206: (1216.12) | D206: (500.00) | E206: $1,216.12 | F206: $1,166.45 | G206: $49.67 | H206: $13,734.63 | I206: October 2029 | J206: 538 | L206: 149 | M206: ($716.12) | N206: $353.67 | O206: $362.45 | P206: $108,382.63
A207: 539 | B207: =VLOOKUP(A207,Table!D:F,2,FALSE) -> November 2029 | C207: (1216.12) | D207: (500.00) | E207: $1,216.12 | F207: $1,170.34 | G207: $45.78 | H207: $12,564.29 | I207: November 2029 | J207: 539 | L207: 150 | M207: ($716.12) | N207: $354.85 | O207: $361.28 | P207: $108,027.78
A208: 540 | B208: =VLOOKUP(A208,Table!D:F,2,FALSE) -> December 2029 | C208: (1216.12) | D208: (500.00) | E208: $1,216.12 | F208: $1,174.24 | G208: $41.88 | H208: $11,390.05 | I208: December 2029 | J208: 540 | L208: 151 | M208: ($716.12) | N208: $356.03 | O208: $360.09 | P208: $107,671.75
A209: 541 | B209: =VLOOKUP(A209,Table!D:F,2,FALSE) -> January 2030 | C209: (1216.12) | D209: (500.00) | E209: $1,216.12 | F209: $1,178.16 | G209: $37.97 | H209: $10,211.89 | I209: January 2030 | J209: 541 | L209: 152 | M209: ($716.12) | N209: $357.22 | O209: $358.91 | P209: $107,314.53
A210: 542 | B210: =VLOOKUP(A210,Table!D:F,2,FALSE) -> February 2030 | C210: (1216.12) | D210: (500.00) | E210: $1,216.12 | F210: $1,182.08 | G210: $34.04 | H210: $9,029.81 | I210: February 2030 | J210: 542 | L210: 153 | M210: ($716.12) | N210: $358.41 | O210: $357.72 | P210: $106,956.13
A211: 543 | B211: =VLOOKUP(A211,Table!D:F,2,FALSE) -> March 2030 | C211: (1216.12) | D211: (500.00) | E211: $1,216.12 | F211: $1,186.02 | G211: $30.10 | H211: $7,843.79 | I211: March 2030 | J211: 543 | L211: 154 | M211: ($716.12) | N211: $359.60 | O211: $356.52 | P211: $106,596.52
A212: 544 | B212: =VLOOKUP(A212,Table!D:F,2,FALSE) -> April 2030 | C212: (1216.12) | D212: (500.00) | E212: $1,216.12 | F212: $1,189.98 | G212: $26.15 | H212: $6,653.81 | I212: April 2030 | J212: 544 | L212: 155 | M212: ($716.12) | N212: $360.80 | O212: $355.32 | P212: $106,235.72
A213: 545 | B213: =VLOOKUP(A213,Table!D:F,2,FALSE) -> May 2030 | C213: (1216.12) | D213: (500.00) | E213: $1,216.12 | F213: $1,193.94 | G213: $22.18 | H213: $5,459.86 | I213: May 2030 | J213: 545 | L213: 156 | M213: ($716.12) | N213: $362.00 | O213: $354.12 | P213: $105,873.72
A214: 546 | B214: =VLOOKUP(A214,Table!D:F,2,FALSE) -> June 2030 | C214: (1216.12) | D214: (500.00) | E214: $1,216.12 | F214: $1,197.92 | G214: $18.20 | H214: $4,261.94 | I214: June 2030 | J214: 546 | L214: 157 | M214: ($716.12) | N214: $363.21 | O214: $352.91 | P214: $105,510.51
A215: 547 | B215: =VLOOKUP(A215,Table!D:F,2,FALSE) -> July 2030 | C215: (1216.12) | D215: (500.00) | E215: $1,216.12 | F215: $1,201.92 | G215: $14.21 | H215: $3,060.02 | I215: July 2030 | J215: 547 | L215: 158 | M215: ($716.12) | N215: $364.42 | O215: $351.70 | P215: $105,146.09
A216: 548 | B216: =VLOOKUP(A216,Table!D:F,2,FALSE) -> August 2030 | C216: (1216.12) | D216: (500.00) | E216: $1,216.12 | F216: $1,205.92 | G216: $10.20 | H216: $1,854.10 | I216: August 2030 | J216: 548 | L216: 159 | M216: ($716.12) | N216: $365.64 | O216: $350.49 | P216: $104,780.45
A217: 549 | B217: =VLOOKUP(A217,Table!D:F,2,FALSE) -> September 2030 | C217: (1216.12) | D217: (500.00) | E217: $1,216.12 | F217: $1,209.94 | G217: $6.18 | H217: $644.16 | I217: September 2030 | J217: 549 | L217: 160 | M217: ($716.12) | N217: $366.85 | O217: $349.27 | P217: $104,413.60
A218: 550 | B218: =VLOOKUP(A218,Table!D:F,2,FALSE) -> October 2030 | C218: (1216.12) | D218: (500.00) | E218: $1,216.12 | F218: $1,213.98 | G218: $2.15 | H218: $0.00 | I218: October 2030 | J218: 550 | L218: 161 | M218: ($716.12) | N218: $368.08 | O218: $348.05 | P218: $104,045.52
A219: 551 | B219: =VLOOKUP(A219,Table!D:F,2,FALSE) -> November 2030 | C219: (1216.12) | D219: (500.00) | E219: $0.00 | F219: $0.00 | G219: $0.00 | H219: $0.00 | I219: November 2030 | J219: 551 | L219: 162 | M219: ($716.12) | N219: $369.30 | O219: $346.82 | P219: $103,676.21
A220: 552 | B220: =VLOOKUP(A220,Table!D:F,2,FALSE) -> December 2030 | C220: (1216.12) | D220: (500.00) | E220: $0.00 | F220: $0.00 | G220: $0.00 | H220: $0.00 | I220: December 2030 | J220: 552 | L220: 163 | M220: ($716.12) | N220: $370.54 | O220: $345.59 | P220: $103,305.68
A221: 553 | B221: =VLOOKUP(A221,Table!D:F,2,FALSE) -> January 2031 | C221: (1216.12) | D221: (500.00) | E221: $0.00 | F221: $0.00 | G221: $0.00 | H221: $0.00 | I221: January 2031 | J221: 553 | L221: 164 | M221: ($716.12) | N221: $371.77 | O221: $344.35 | P221: $102,933.91
A222: 554 | B222: =VLOOKUP(A222,Table!D:F,2,FALSE) -> February 2031 | C222: (1216.12) | D222: (500.00) | E222: $0.00 | F222: $0.00 | G222: $0.00 | H222: $0.00 | I222: February 2031 | J222: 554 | L222: 165 | M222: ($716.12) | N222: $373.01 | O222: $343.11 | P222: $102,560.90
A223: 555 | B223: =VLOOKUP(A223,Table!D:F,2,FALSE) -> March 2031 | C223: (1216.12) | D223: (500.00) | E223: $0.00 | F223: $0.00 | G223: $0.00 | H223: $0.00 | I223: March 2031 | J223: 555 | L223: 166 | M223: ($716.12) | N223: $374.25 | O223: $341.87 | P223: $102,186.65
A224: 556 | B224: =VLOOKUP(A224,Table!D:F,2,FALSE) -> April 2031 | C224: (1216.12) | D224: (500.00) | E224: $0.00 | F224: $0.00 | G224: $0.00 | H224: $0.00 | I224: April 2031 | J224: 556 | L224: 167 | M224: ($716.12) | N224: $375.50 | O224: $340.62 | P224: $101,811.14
A225: 557 | B225: =VLOOKUP(A225,Table!D:F,2,FALSE) -> May 2031 | C225: (1216.12) | D225: (500.00) | E225: $0.00 | F225: $0.00 | G225: $0.00 | H225: $0.00 | I225: May 2031 | J225: 557 | L225: 168 | M225: ($716.12) | N225: $376.75 | O225: $339.37 | P225: $101,434.39
A226: 558 | B226: =VLOOKUP(A226,Table!D:F,2,FALSE) -> June 2031 | C226: (1216.12) | D226: (500.00) | E226: $0.00 | F226: $0.00 | G226: $0.00 | H226: $0.00 | I226: June 2031 | J226: 558 | L226: 169 | M226: ($716.12) | N226: $378.01 | O226: $338.11 | P226: $101,056.38
A227: 559 | B227: =VLOOKUP(A227,Table!D:F,2,FALSE) -> July 2031 | C227: (1216.12) | D227: (500.00) | E227: $0.00 | F227: $0.00 | G227: $0.00 | H227: $0.00 | I227: July 2031 | J227: 559 | L227: 170 | M227: ($716.12) | N227: $379.27 | O227: $336.85 | P227: $100,677.12
A228: 560 | B228: =VLOOKUP(A228,Table!D:F,2,FALSE) -> August 2031 | C228: (1216.12) | D228: (500.00) | E228: $0.00 | F228: $0.00 | G228: $0.00 | H228: $0.00 | I228: August 2031 | J228: 560 | L228: 171 | M228: ($716.12) | N228: $380.53 | O228: $335.59 | P228: $100,296.58
A229: 561 | B229: =VLOOKUP(A229,Table!D:F,2,FALSE) -> September 2031 | C229: (1216.12) | D229: (500.00) | E229: $0.00 | F229: $0.00 | G229: $0.00 | H229: $0.00 | I229: September 2031 | J229: 561 | L229: 172 | M229: ($716.12) | N229: $381.80 | O229: $334.32 | P229: $99,914.78
A230: 562 | B230: =VLOOKUP(A230,Table!D:F,2,FALSE) -> October 2031 | C230: (1216.12) | D230: (500.00) | E230: $0.00 | F230: $0.00 | G230: $0.00 | H230: $0.00 | I230: October 2031 | J230: 562 | L230: 173 | M230: ($716.12) | N230: $383.07 | O230: $333.05 | P230: $99,531.71
A231: 563 | B231: =VLOOKUP(A231,Table!D:F,2,FALSE) -> November 2031 | C231: (1216.12) | D231: (500.00) | E231: $0.00 | F231: $0.00 | G231: $0.00 | H231: $0.00 | I231: November 2031 | J231: 563 | L231: 174 | M231: ($716.12) | N231: $384.35 | O231: $331.77 | P231: $99,147.36
A232: 564 | B232: =VLOOKUP(A232,Table!D:F,2,FALSE) -> December 2031 | C232: (1216.12) | D232: (500.00) | E232: $0.00 | F232: $0.00 | G232: $0.00 | H232: $0.00 | I232: December 2031 | J232: 564 | L232: 175 | M232: ($716.12) | N232: $385.63 | O232: $330.49 | P232: $98,761.73
... 425 more rows

Sheet Table (hidden)
B3: Month | C3: Year | D3: Count | E3: Month Date | F3: Count | I3: Month | J3: Past Year | K3: Start Payoff Year
A4: 1 | B4: January | C4: 1985 | D4: 1 | E4: =CONCATENATE(B4," ",C4) -> January 1985 | F4: 1 | I4: January | J4: 1985 | K4: 2017
A5: 2 | B5: February | C5: 1985 | D5: 2 | E5: =CONCATENATE(B5," ",C5) -> February 1985 | F5: 2 | I5: February | J5: 1986 | K5: 2018
A6: 3 | B6: March | C6: 1985 | D6: 3 | E6: March 1985 | F6: 3 | I6: March | J6: 1987 | K6: 2019
A7: 4 | B7: April | C7: 1985 | D7: 4 | E7: April 1985 | F7: 4 | I7: April | J7: 1988 | K7: 2020
A8: 5 | B8: May | C8: 1985 | D8: 5 | E8: May 1985 | F8: 5 | I8: May | J8: 1989 | K8: 2021
A9: 6 | B9: June | C9: 1985 | D9: 6 | E9: June 1985 | F9: 6 | I9: June | J9: 1990 | K9: 2022
A10: 7 | B10: July | C10: 1985 | D10: 7 | E10: July 1985 | F10: 7 | I10: July | J10: 1991 | K10: 2023
A11: 8 | B11: August | C11: 1985 | D11: 8 | E11: August 1985 | F11: 8 | I11: August | J11: 1992 | K11: 2024
A12: 9 | B12: September | C12: 1985 | D12: 9 | E12: September 1985 | F12: 9 | I12: September | J12: 1993 | K12: 2025
A13: 10 | B13: October | C13: 1985 | D13: 10 | E13: October 1985 | F13: 10 | I13: October | J13: 1994 | K13: 2026
A14: 11 | B14: November | C14: 1985 | D14: 11 | E14: November 1985 | F14: 11 | I14: November | J14: 1995 | K14: 2027
A15: 12 | B15: December | C15: 1985 | D15: 12 | E15: December 1985 | F15: 12 | I15: December | J15: 1996 | K15: 2028
A16: 13 | B16: January | C16: 1986 | D16: 13 | E16: January 1986 | F16: 13 | J16: 1997 | K16: 2029
A17: 14 | B17: February | C17: 1986 | D17: 14 | E17: February 1986 | F17: 14 | J17: 1998 | K17: 2030
A18: 15 | B18: March | C18: 1986 | D18: 15 | E18: March 1986 | F18: 15 | J18: 1999 | K18: 2031
A19: 16 | B19: April | C19: 1986 | D19: 16 | E19: April 1986 | F19: 16 | J19: 2000 | K19: 2032
A20: 17 | B20: May | C20: 1986 | D20: 17 | E20: May 1986 | F20: 17 | J20: 2001 | K20: 2033
A21: 18 | B21: June | C21: 1986 | D21: 18 | E21: June 1986 | F21: 18 | J21: 2002 | K21: 2034
A22: 19 | B22: July | C22: 1986 | D22: 19 | E22: July 1986 | F22: 19 | J22: 2003 | K22: 2035
A23: 20 | B23: August | C23: 1986 | D23: 20 | E23: August 1986 | F23: 20 | J23: 2004 | K23: 2036
A24: 21 | B24: September | C24: 1986 | D24: 21 | E24: September 1986 | F24: 21 | J24: 2005 | K24: 2037
A25: 22 | B25: October | C25: 1986 | D25: 22 | E25: October 1986 | F25: 22 | J25: 2006 | K25: 2038
A26: 23 | B26: November | C26: 1986 | D26: 23 | E26: November 1986 | F26: 23 | J26: 2007 | K26: 2039
A27: 24 | B27: December | C27: 1986 | D27: 24 | E27: December 1986 | F27: 24 | J27: 2008 | K27: 2040
A28: 25 | B28: January | C28: 1987 | D28: 25 | E28: January 1987 | F28: 25 | J28: 2009 | K28: 2041
A29: 26 | B29: February | C29: 1987 | D29: 26 | E29: February 1987 | F29: 26 | J29: 2010 | K29: 2042
A30: 27 | B30: March | C30: 1987 | D30: 27 | E30: March 1987 | F30: 27 | J30: 2011 | K30: 2043
A31: 28 | B31: April | C31: 1987 | D31: 28 | E31: April 1987 | F31: 28 | J31: 2012 | K31: 2044
A32: 29 | B32: May | C32: 1987 | D32: 29 | E32: May 1987 | F32: 29 | J32: 2013 | K32: 2045
A33: 30 | B33: June | C33: 1987 | D33: 30 | E33: June 1987 | F33: 30 | J33: 2014 | K33: 2046
A34: 31 | B34: July | C34: 1987 | D34: 31 | E34: July 1987 | F34: 31 | J34: 2015 | K34: 2047
A35: 32 | B35: August | C35: 1987 | D35: 32 | E35: August 1987 | F35: 32 | J35: 2016 | K35: 2048
A36: 33 | B36: September | C36: 1987 | D36: 33 | E36: September 1987 | F36: 33 | J36: 2017 | K36: 2049
A37: 34 | B37: October | C37: 1987 | D37: 34 | E37: October 1987 | F37: 34 | J37: 2018 | K37: 2050
A38: 35 | B38: November | C38: 1987 | D38: 35 | E38: November 1987 | F38: 35 | J38: 2019 | K38: 2051
A39: 36 | B39: December | C39: 1987 | D39: 36 | E39: December 1987 | F39: 36 | J39: 2020 | K39: 2052
A40: 37 | B40: January | C40: 1988 | D40: 37 | E40: January 1988 | F40: 37 | J40: 2021 | K40: 2053
A41: 38 | B41: February | C41: 1988 | D41: 38 | E41: February 1988 | F41: 38 | K41: 2054
A42: 39 | B42: March | C42: 1988 | D42: 39 | E42: March 1988 | F42: 39 | K42: 2055
A43: 40 | B43: April | C43: 1988 | D43: 40 | E43: April 1988 | F43: 40 | K43: 2056
A44: 41 | B44: May | C44: 1988 | D44: 41 | E44: May 1988 | F44: 41 | K44: 2057
A45: 42 | B45: June | C45: 1988 | D45: 42 | E45: June 1988 | F45: 42 | K45: 2058
A46: 43 | B46: July | C46: 1988 | D46: 43 | E46: July 1988 | F46: 43 | K46: 2059
A47: 44 | B47: August | C47: 1988 | D47: 44 | E47: August 1988 | F47: 44 | K47: 2060
A48: 45 | B48: September | C48: 1988 | D48: 45 | E48: September 1988 | F48: 45 | K48: 2061
A49: 46 | B49: October | C49: 1988 | D49: 46 | E49: October 1988 | F49: 46 | K49: 2062
A50: 47 | B50: November | C50: 1988 | D50: 47 | E50: November 1988 | F50: 47 | K50: 2063
A51: 48 | B51: December | C51: 1988 | D51: 48 | E51: December 1988 | F51: 48 | K51: 2064
A52: 49 | B52: January | C52: 1989 | D52: 49 | E52: January 1989 | F52: 49 | K52: 2065
A53: 50 | B53: February | C53: 1989 | D53: 50 | E53: February 1989 | F53: 50 | K53: 2066
A54: 51 | B54: March | C54: 1989 | D54: 51 | E54: March 1989 | F54: 51 | K54: 2067
A55: 52 | B55: April | C55: 1989 | D55: 52 | E55: April 1989 | F55: 52 | K55: 2068
A56: 53 | B56: May | C56: 1989 | D56: 53 | E56: May 1989 | F56: 53 | K56: 2069
A57: 54 | B57: June | C57: 1989 | D57: 54 | E57: June 1989 | F57: 54 | K57: 2070
A58: 55 | B58: July | C58: 1989 | D58: 55 | E58: July 1989 | F58: 55 | K58: 2071
A59: 56 | B59: August | C59: 1989 | D59: 56 | E59: August 1989 | F59: 56 | K59: 2072
A60: 57 | B60: September | C60: 1989 | D60: 57 | E60: September 1989 | F60: 57 | K60: 2073
A61: 58 | B61: October | C61: 1989 | D61: 58 | E61: October 1989 | F61: 58 | K61: 2074
A62: 59 | B62: November | C62: 1989 | D62: 59 | E62: November 1989 | F62: 59 | K62: 2075
A63: 60 | B63: December | C63: 1989 | D63: 60 | E63: December 1989 | F63: 60 | K63: 2076
A64: 61 | B64: January | C64: 1990 | D64: 61 | E64: January 1990 | F64: 61 | K64: 2077
A65: 62 | B65: February | C65: 1990 | D65: 62 | E65: February 1990 | F65: 62 | K65: 2078
A66: 63 | B66: March | C66: 1990 | D66: 63 | E66: March 1990 | F66: 63 | K66: 2079
A67: 64 | B67: April | C67: 1990 | D67: 64 | E67: April 1990 | F67: 64 | K67: 2080
A68: 65 | B68: May | C68: 1990 | D68: 65 | E68: May 1990 | F68: 65 | K68: 2081
A69: 66 | B69: June | C69: 1990 | D69: 66 | E69: =CONCATENATE(B69," ",C69) -> June 1990 | F69: 66 | K69: 2082
A70: 67 | B70: July | C70: 1990 | D70: 67 | E70: July 1990 | F70: 67 | K70: 2083
A71: 68 | B71: August | C71: 1990 | D71: 68 | E71: August 1990 | F71: 68 | K71: 2084
A72: 69 | B72: September | C72: 1990 | D72: 69 | E72: September 1990 | F72: 69 | K72: 2085
A73: 70 | B73: October | C73: 1990 | D73: 70 | E73: October 1990 | F73: 70
A74: 71 | B74: November | C74: 1990 | D74: 71 | E74: November 1990 | F74: 71
A75: 72 | B75: December | C75: 1990 | D75: 72 | E75: December 1990 | F75: 72
A76: 73 | B76: January | C76: 1991 | D76: 73 | E76: January 1991 | F76: 73
A77: 74 | B77: February | C77: 1991 | D77: 74 | E77: February 1991 | F77: 74
A78: 75 | B78: March | C78: 1991 | D78: 75 | E78: March 1991 | F78: 75
A79: 76 | B79: April | C79: 1991 | D79: 76 | E79: April 1991 | F79: 76
A80: 77 | B80: May | C80: 1991 | D80: 77 | E80: May 1991 | F80: 77
A81: 78 | B81: June | C81: 1991 | D81: 78 | E81: June 1991 | F81: 78
A82: 79 | B82: July | C82: 1991 | D82: 79 | E82: July 1991 | F82: 79
A83: 80 | B83: August | C83: 1991 | D83: 80 | E83: August 1991 | F83: 80
A84: 81 | B84: September | C84: 1991 | D84: 81 | E84: September 1991 | F84: 81
A85: 82 | B85: October | C85: 1991 | D85: 82 | E85: October 1991 | F85: 82
A86: 83 | B86: November | C86: 1991 | D86: 83 | E86: November 1991 | F86: 83
A87: 84 | B87: December | C87: 1991 | D87: 84 | E87: December 1991 | F87: 84
A88: 85 | B88: January | C88: 1992 | D88: 85 | E88: January 1992 | F88: 85
A89: 86 | B89: February | C89: 1992 | D89: 86 | E89: February 1992 | F89: 86
A90: 87 | B90: March | C90: 1992 | D90: 87 | E90: March 1992 | F90: 87
A91: 88 | B91: April | C91: 1992 | D91: 88 | E91: April 1992 | F91: 88
A92: 89 | B92: May | C92: 1992 | D92: 89 | E92: May 1992 | F92: 89
A93: 90 | B93: June | C93: 1992 | D93: 90 | E93: June 1992 | F93: 90
A94: 91 | B94: July | C94: 1992 | D94: 91 | E94: July 1992 | F94: 91
A95: 92 | B95: August | C95: 1992 | D95: 92 | E95: August 1992 | F95: 92
A96: 93 | B96: September | C96: 1992 | D96: 93 | E96: September 1992 | F96: 93
A97: 94 | B97: October | C97: 1992 | D97: 94 | E97: October 1992 | F97: 94
A98: 95 | B98: November | C98: 1992 | D98: 95 | E98: November 1992 | F98: 95
A99: 96 | B99: December | C99: 1992 | D99: 96 | E99: December 1992 | F99: 96
A100: 97 | B100: January | C100: 1993 | D100: 97 | E100: January 1993 | F100: 97
A101: 98 | B101: February | C101: 1993 | D101: 98 | E101: February 1993 | F101: 98
A102: 99 | B102: March | C102: 1993 | D102: 99 | E102: March 1993 | F102: 99
A103: 100 | B103: April | C103: 1993 | D103: 100 | E103: April 1993 | F103: 100
A104: 101 | B104: May | C104: 1993 | D104: 101 | E104: May 1993 | F104: 101
A105: 102 | B105: June | C105: 1993 | D105: 102 | E105: June 1993 | F105: 102
A106: 103 | B106: July | C106: 1993 | D106: 103 | E106: July 1993 | F106: 103
A107: 104 | B107: August | C107: 1993 | D107: 104 | E107: August 1993 | F107: 104
A108: 105 | B108: September | C108: 1993 | D108: 105 | E108: September 1993 | F108: 105
A109: 106 | B109: October | C109: 1993 | D109: 106 | E109: October 1993 | F109: 106
A110: 107 | B110: November | C110: 1993 | D110: 107 | E110: November 1993 | F110: 107
A111: 108 | B111: December | C111: 1993 | D111: 108 | E111: December 1993 | F111: 108
A112: 109 | B112: January | C112: 1994 | D112: 109 | E112: January 1994 | F112: 109
A113: 110 | B113: February | C113: 1994 | D113: 110 | E113: February 1994 | F113: 110
A114: 111 | B114: March | C114: 1994 | D114: 111 | E114: March 1994 | F114: 111
A115: 112 | B115: April | C115: 1994 | D115: 112 | E115: April 1994 | F115: 112
A116: 113 | B116: May | C116: 1994 | D116: 113 | E116: May 1994 | F116: 113
A117: 114 | B117: June | C117: 1994 | D117: 114 | E117: June 1994 | F117: 114
A118: 115 | B118: July | C118: 1994 | D118: 115 | E118: July 1994 | F118: 115
A119: 116 | B119: August | C119: 1994 | D119: 116 | E119: August 1994 | F119: 116
A120: 117 | B120: September | C120: 1994 | D120: 117 | E120: September 1994 | F120: 117
A121: 118 | B121: October | C121: 1994 | D121: 118 | E121: October 1994 | F121: 118
A122: 119 | B122: November | C122: 1994 | D122: 119 | E122: November 1994 | F122: 119
A123: 120 | B123: December | C123: 1994 | D123: 120 | E123: December 1994 | F123: 120
A124: 121 | B124: January | C124: 1995 | D124: 121 | E124: January 1995 | F124: 121
A125: 122 | B125: February | C125: 1995 | D125: 122 | E125: February 1995 | F125: 122
A126: 123 | B126: March | C126: 1995 | D126: 123 | E126: March 1995 | F126: 123
A127: 124 | B127: April | C127: 1995 | D127: 124 | E127: April 1995 | F127: 124
A128: 125 | B128: May | C128: 1995 | D128: 125 | E128: May 1995 | F128: 125
A129: 126 | B129: June | C129: 1995 | D129: 126 | E129: June 1995 | F129: 126
A130: 127 | B130: July | C130: 1995 | D130: 127 | E130: July 1995 | F130: 127
A131: 128 | B131: August | C131: 1995 | D131: 128 | E131: August 1995 | F131: 128
A132: 129 | B132: September | C132: 1995 | D132: 129 | E132: September 1995 | F132: 129
A133: 130 | B133: October | C133: 1995 | D133: 130 | E133: =CONCATENATE(B133," ",C133) -> October 1995 | F133: 130
A134: 131 | B134: November | C134: 1995 | D134: 131 | E134: November 1995 | F134: 131
A135: 132 | B135: December | C135: 1995 | D135: 132 | E135: December 1995 | F135: 132
A136: 133 | B136: January | C136: 1996 | D136: 133 | E136: January 1996 | F136: 133
A137: 134 | B137: February | C137: 1996 | D137: 134 | E137: February 1996 | F137: 134
A138: 135 | B138: March | C138: 1996 | D138: 135 | E138: March 1996 | F138: 135
A139: 136 | B139: April | C139: 1996 | D139: 136 | E139: April 1996 | F139: 136
A140: 137 | B140: May | C140: 1996 | D140: 137 | E140: May 1996 | F140: 137
A141: 138 | B141: June | C141: 1996 | D141: 138 | E141: June 1996 | F141: 138
A142: 139 | B142: July | C142: 1996 | D142: 139 | E142: July 1996 | F142: 139
A143: 140 | B143: August | C143: 1996 | D143: 140 | E143: August 1996 | F143: 140
A144: 141 | B144: September | C144: 1996 | D144: 141 | E144: September 1996 | F144: 141
A145: 142 | B145: October | C145: 1996 | D145: 142 | E145: October 1996 | F145: 142
A146: 143 | B146: November | C146: 1996 | D146: 143 | E146: November 1996 | F146: 143
A147: 144 | B147: December | C147: 1996 | D147: 144 | E147: December 1996 | F147: 144
A148: 145 | B148: January | C148: 1997 | D148: 145 | E148: January 1997 | F148: 145
A149: 146 | B149: February | C149: 1997 | D149: 146 | E149: February 1997 | F149: 146
A150: 147 | B150: March | C150: 1997 | D150: 147 | E150: March 1997 | F150: 147
A151: 148 | B151: April | C151: 1997 | D151: 148 | E151: April 1997 | F151: 148
A152: 149 | B152: May | C152: 1997 | D152: 149 | E152: May 1997 | F152: 149
A153: 150 | B153: June | C153: 1997 | D153: 150 | E153: June 1997 | F153: 150
A154: 151 | B154: July | C154: 1997 | D154: 151 | E154: July 1997 | F154: 151
A155: 152 | B155: August | C155: 1997 | D155: 152 | E155: August 1997 | F155: 152
A156: 153 | B156: September | C156: 1997 | D156: 153 | E156: September 1997 | F156: 153
A157: 154 | B157: October | C157: 1997 | D157: 154 | E157: October 1997 | F157: 154
A158: 155 | B158: November | C158: 1997 | D158: 155 | E158: November 1997 | F158: 155
A159: 156 | B159: December | C159: 1997 | D159: 156 | E159: December 1997 | F159: 156
A160: 157 | B160: January | C160: 1998 | D160: 157 | E160: January 1998 | F160: 157
A161: 158 | B161: February | C161: 1998 | D161: 158 | E161: February 1998 | F161: 158
A162: 159 | B162: March | C162: 1998 | D162: 159 | E162: March 1998 | F162: 159
A163: 160 | B163: April | C163: 1998 | D163: 160 | E163: April 1998 | F163: 160
A164: 161 | B164: May | C164: 1998 | D164: 161 | E164: May 1998 | F164: 161
A165: 162 | B165: June | C165: 1998 | D165: 162 | E165: June 1998 | F165: 162
A166: 163 | B166: July | C166: 1998 | D166: 163 | E166: July 1998 | F166: 163
A167: 164 | B167: August | C167: 1998 | D167: 164 | E167: August 1998 | F167: 164
A168: 165 | B168: September | C168: 1998 | D168: 165 | E168: September 1998 | F168: 165
A169: 166 | B169: October | C169: 1998 | D169: 166 | E169: October 1998 | F169: 166
A170: 167 | B170: November | C170: 1998 | D170: 167 | E170: November 1998 | F170: 167
A171: 168 | B171: December | C171: 1998 | D171: 168 | E171: December 1998 | F171: 168
A172: 169 | B172: January | C172: 1999 | D172: 169 | E172: January 1999 | F172: 169
A173: 170 | B173: February | C173: 1999 | D173: 170 | E173: February 1999 | F173: 170
A174: 171 | B174: March | C174: 1999 | D174: 171 | E174: March 1999 | F174: 171
A175: 172 | B175: April | C175: 1999 | D175: 172 | E175: April 1999 | F175: 172
A176: 173 | B176: May | C176: 1999 | D176: 173 | E176: May 1999 | F176: 173
A177: 174 | B177: June | C177: 1999 | D177: 174 | E177: June 1999 | F177: 174
A178: 175 | B178: July | C178: 1999 | D178: 175 | E178: July 1999 | F178: 175
A179: 176 | B179: August | C179: 1999 | D179: 176 | E179: August 1999 | F179: 176
A180: 177 | B180: September | C180: 1999 | D180: 177 | E180: September 1999 | F180: 177
A181: 178 | B181: October | C181: 1999 | D181: 178 | E181: October 1999 | F181: 178
A182: 179 | B182: November | C182: 1999 | D182: 179 | E182: November 1999 | F182: 179
A183: 180 | B183: December | C183: 1999 | D183: 180 | E183: December 1999 | F183: 180
A184: 181 | B184: January | C184: 2000 | D184: 181 | E184: January 2000 | F184: 181
A185: 182 | B185: February | C185: 2000 | D185: 182 | E185: February 2000 | F185: 182
A186: 183 | B186: March | C186: 2000 | D186: 183 | E186: March 2000 | F186: 183
A187: 184 | B187: April | C187: 2000 | D187: 184 | E187: April 2000 | F187: 184
A188: 185 | B188: May | C188: 2000 | D188: 185 | E188: May 2000 | F188: 185
A189: 186 | B189: June | C189: 2000 | D189: 186 | E189: June 2000 | F189: 186
A190: 187 | B190: July | C190: 2000 | D190: 187 | E190: July 2000 | F190: 187
A191: 188 | B191: August | C191: 2000 | D191: 188 | E191: August 2000 | F191: 188
A192: 189 | B192: September | C192: 2000 | D192: 189 | E192: September 2000 | F192: 189
A193: 190 | B193: October | C193: 2000 | D193: 190 | E193: October 2000 | F193: 190
A194: 191 | B194: November | C194: 2000 | D194: 191 | E194: November 2000 | F194: 191
A195: 192 | B195: December | C195: 2000 | D195: 192 | E195: December 2000 | F195: 192
A196: 193 | B196: January | C196: 2001 | D196: 193 | E196: January 2001 | F196: 193
A197: 194 | B197: February | C197: 2001 | D197: 194 | E197: =CONCATENATE(B197," ",C197) -> February 2001 | F197: 194
A198: 195 | B198: March | C198: 2001 | D198: 195 | E198: March 2001 | F198: 195
A199: 196 | B199: April | C199: 2001 | D199: 196 | E199: April 2001 | F199: 196
A200: 197 | B200: May | C200: 2001 | D200: 197 | E200: May 2001 | F200: 197
A201: 198 | B201: June | C201: 2001 | D201: 198 | E201: June 2001 | F201: 198
A202: 199 | B202: July | C202: 2001 | D202: 199 | E202: July 2001 | F202: 199
... 953 more rows
